bitfinex-derivatives/quotes_SOLF0:USTF0_20240930
["timestamp","ask_amount","ask_price","bid_price","bid_amount"]
[1727677541437,7.81,157.29,157.25,3.1793]
[1727677541636,7.81,157.29,157.25,10.9893]
[1727677542036,10.9887,157.29,157.25,10.9893]
[1727677542340,1.0,157.3,157.25,7.81]
[1727677542530,4.1785,157.3,157.27,7.81]
[1727677542933,3.1788,157.29,157.25,3.1793]
[1727677543233,1.0,157.3,157.25,7.81]
[1727677544028,4.1786,157.3,157.26,3.1791]
[1727677544232,1.0,157.3,157.26,7.81]
[1727677544437,1.0,157.3,157.27,7.81]
[1727677544651,1.0,157.3,157.27,10.9889]
[1727677545141,0.12502,157.31,157.28,3.1787]
[1727677545739,3.30332,157.31,157.27,10.989]
[1727677545940,3.30332,157.31,157.27,7.81]
[1727677546341,0.12502,157.31,157.28,3.1787]
[1727677546540,0.12502,157.31,157.28,10.9887]
[1727677546738,0.12502,157.31,157.28,7.81]
[1727677546943,0.12502,157.31,157.3,10.9884]
[1727677548440,0.12502,157.31,157.28,7.81]
[1727677548843,0.12502,157.31,157.3,7.81]
[1727677549444,0.12502,157.31,157.3,10.9884]
[1727677551842,0.12502,157.31,157.29,3.1785]
[1727677552038,0.12502,157.31,157.29,7.81]
[1727677552247,0.12502,157.31,157.3,7.81]
[1727677552545,0.12502,157.31,157.3,10.9884]
[1727677559854,0.12502,157.37,157.33,3.1776]
[1727677560047,0.12502,157.37,157.34,7.81]
[1727677560444,0.12502,157.37,157.33,3.1776]
[1727677560445,0.12502,157.37,157.33,7.81]
[1727677560950,0.12502,157.37,157.34,10.9876]
[1727677561152,0.12502,157.37,157.34,7.81]
[1727677562154,0.12502,157.37,157.34,10.9876]
[1727677563356,0.12502,157.37,157.34,7.81]
[1727677563654,0.12502,157.37,157.27,1.3352]
[1727677563849,7.93502,157.37,157.31,7.81]
[1727677564051,3.1776,157.35,157.31,7.81]
[1727677565861,7.81,157.35,157.29,7.81]
[1727677566163,0.12502,157.37,157.28,10.9888]
[1727677566164,3.1781,157.32,157.28,10.9888]
[1727677566758,7.81,157.34,157.26,2.5861]
[1727677566957,3.1992986,157.35,157.26,9.0595]
[1727677566958,7.81,157.32,157.26,9.0595]
[1727677567258,7.81,157.32,157.25,0.12502]
[1727677567259,7.81,157.31,157.25,0.12502]
[1727677567455,3.1788,157.28,157.25,0.12502]
[1727677568363,7.81,157.29,157.25,0.12502]
[1727677568663,3.179,157.27,157.25,0.12502]
[1727677569863,7.81,157.27,157.25,0.12502]
[1727677570268,3.179,157.28,157.25,0.12502]
[1727677570466,10.989,157.28,157.25,0.12502]
[1727677571764,3.1792,157.27,157.25,0.12502]
[1727677572861,3.1792,157.26,157.25,0.12502]
[1727677573661,10.9892,157.26,157.25,0.12502]
[1727677578262,7.81,157.26,157.19,7.93502]
[1727677578463,10.9898,157.24,157.2,3.1804]
[1727677578974,7.81,157.24,157.2,3.1804]
[1727677579190,11.06443052,157.24,157.19,0.12502]
[1727677579376,3.1802,157.22,157.19,0.12502]
[1727677580376,3.1802,157.22,157.19,3.30572]
[1727677581873,3.1802,157.22,157.19,0.12502]
[1727677590276,7.81,157.23,157.19,0.12502]
[1727677590879,3.1804,157.21,157.19,0.12502]
[1727677591477,3.1801,157.22,157.19,3.30562]
[1727677599681,3.18,157.23,157.2,3.1803]
[1727677601985,7.81,157.24,157.19,0.12502]
[1727677602215,7.81,157.24,157.19,3.30552]
[1727677602216,3.1802,157.22,157.19,3.30552]
[1727677604089,10.94542525,157.24,157.19,0.12502]
[1727677604891,3.1802,157.22,157.19,0.12502]
[1727677605688,3.13542525,157.24,157.19,0.12502]
[1727677605894,1.2751,157.3,157.19,7.93502]
[1727677606093,7.81,157.26,157.19,7.93502]
[1727677606790,3.1796,157.24,157.21,3.1801]
[1727677608796,3.1795,157.25,157.21,3.1801]
[1727677609097,7.81,157.27,157.2,7.81]
[1727677609299,7.81,157.26,157.2,10.9904]
[1727677609801,3.1798,157.24,157.2,10.9904]
[1727677610299,1.0,157.29,157.19,0.12502]
[1727677610489,7.81,157.23,157.19,0.12502]
[1727677611293,3.1802,157.22,157.19,3.30562]
[1727677611499,3.1802,157.22,157.19,0.12502]
[1727677612296,1.0,157.29,157.19,0.12502]
[1727677612494,7.81,157.25,157.2,7.81]
[1727677613101,3.18,157.23,157.2,7.81]
[1727677613799,3.18,157.23,157.2,10.9904]
[1727677614198,7.81,157.25,157.2,10.9904]
[1727677614405,3.1797,157.24,157.2,10.9904]
[1727677614607,7.81,157.28,157.23,7.81]
[1727677615103,3.1794,157.26,157.23,7.81]
[1727677615297,7.81,157.28,157.23,10.9897]
[1727677615604,3.1791,157.27,157.23,10.9897]
[1727677616391,7.81,157.28,157.23,10.9897]
[1727677616590,3.1792,157.27,157.24,7.81]
[1727677616797,8.81,157.29,157.24,7.81]
[1727677616998,1.0,157.29,157.24,10.9895]
[1727677617197,8.81,157.29,157.24,10.9895]
[1727677617405,8.81,157.29,157.24,7.81]
[1727677617707,3.179,157.28,157.25,3.1794]
[1727677618407,3.179,157.28,157.24,10.9896]
[1727677619303,3.1791,157.27,157.24,10.9896]
[1727677620609,7.81,157.28,157.21,1.3547]
[1727677620814,3.1793,157.26,157.23,3.1798]
[1727677621008,7.81,157.28,157.22,7.81]
[1727677621712,7.81,157.28,157.22,10.99]
[1727677622010,7.81,157.25,157.2,10.3975]
[1727677622407,3.1798,157.24,157.2,10.3975]
[1727677623315,3.1798,157.24,157.21,3.1802]
[1727677625917,3.1798,157.24,157.2,10.3975]
[1727677626118,3.1798,157.24,157.2,13.5778]
[1727677626520,3.18,157.23,157.2,2.5875]
[1727677626720,3.18,157.23,157.2,13.5779]
[1727677627120,3.1797,157.24,157.2,13.5779]
[1727677627530,3.1797,157.24,157.2,10.9904]
[1727677628219,7.81,157.25,157.19,0.12502]
[1727677628419,3.1801,157.22,157.19,0.12502]
[1727677630733,1.0,157.29,157.19,7.93502]
[1727677630932,7.81,157.27,157.21,10.9902]
[1727677631116,1.0,157.29,157.21,10.9902]
[1727677631426,3.1796,157.25,157.21,10.9902]
[1727677632028,7.81,157.27,157.21,10.9902]
[1727677632029,3.1797,157.24,157.21,10.9902]
[1727677634329,1.0,157.29,157.19,3.30562]
[1727677634525,7.81,157.25,157.19,7.93502]
[1727677634723,3.1797,157.24,157.21,10.9902]
[1727677635828,7.81,157.27,157.21,10.9902]
[1727677635829,3.1794,157.26,157.22,3.18]
[1727677636727,3.1794,157.26,157.22,10.99]
[1727677637537,7.81,157.27,157.22,10.99]
[1727677637830,3.1794,157.25,157.22,10.99]
[1727677638333,3.1793,157.26,157.23,3.1798]
[1727677639840,3.1791,157.27,157.24,10.9896]
[1727677641334,8.81,157.29,157.24,7.81]
[1727677641635,3.1793,157.26,157.24,7.81]
[1727677645338,3.1793,157.26,157.23,7.81]
[1727677646829,1.0,157.29,157.24,7.81]
[1727677647031,1.0,157.29,157.25,7.81]
[1727677647440,4.1788,157.29,157.25,10.9893]
[1727677647940,3.1789,157.28,157.25,10.9893]
[1727677648442,3.1789,157.28,157.22,7.81]
[1727677648443,7.81,157.28,157.22,7.81]
[1727677648643,3.1793,157.26,157.22,7.81]
[1727677649339,3.1793,157.26,157.23,3.1798]
[1727677650339,3.1791,157.27,157.23,3.1798]
[1727677650537,3.1791,157.27,157.24,7.81]
[1727677658752,7.81,157.27,157.2,3.9503]
[1727677658955,7.81,157.26,157.21,7.81]
[1727677659249,3.1799,157.23,157.2,9.1132]
[1727677659855,3.1797,157.24,157.2,12.2935]
[1727677665454,3.1799,157.23,157.2,7.81]
[1727677666357,3.1802,157.22,157.19,7.93502]
[1727677666665,3.1802,157.22,157.19,0.12502]
[1727677668257,3.1802,157.22,157.19,7.93502]
[1727677669351,3.1802,157.22,157.19,11.11562]
[1727677671065,7.81,157.2,157.19,0.12502]
[1727677671261,10.9905,157.2,157.19,0.12502]
[1727677671561,3.1805,157.2,157.19,0.12502]
[1727677671867,10.9905,157.2,157.19,0.12502]
[1727677672367,3.1805,157.2,157.19,0.12502]
[1727677672562,10.9905,157.2,157.19,0.12502]
[1727677679969,7.81,157.2,157.13,0.12502]
[1727677680165,7.81,157.17,157.13,3.30692]
[1727677680470,10.9912,157.17,157.13,11.11692]
[1727677681176,7.81,157.17,157.13,3.30692]
[1727677681471,3.1813,157.16,157.13,11.11692]
[1727677681676,1.2893,157.21,157.13,7.93502]
[1727677681865,10.991,157.18,157.14,3.1816]
[1727677682271,7.81,157.18,157.14,3.1816]
[1727677682474,10.9909,157.18,157.14,3.1816]
[1727677683478,3.1811,157.17,157.13,7.93502]
[1727677683679,3.1811,157.17,157.13,11.11682]
[1727677686586,3.1813,157.16,157.13,7.93502]
[1727677686882,3.1813,157.16,157.13,0.12502]
[1727677691395,7.81,157.17,157.13,0.12502]
[1727677691591,3.1815,157.15,157.13,0.12502]
[1727677691900,7.81,157.16,157.13,0.12502]
[1727677692798,7.81,157.15,157.13,0.12502]
[1727677693209,3.1817,157.14,157.13,0.12502]
[1727677693809,6.41125987,157.14,157.13,0.12502]
[1727677696097,3.22955987,157.14,157.07,0.12502]
[1727677696311,3.1824,157.11,157.07,0.12502]
[1727677697096,3.1824,157.11,157.07,3.30792]
[1727677698401,3.1817,157.14,157.1,3.1823]
[1727677698597,12.28228962,157.16,157.1,10.9923]
[1727677698907,7.81,157.15,157.1,3.1823]
[1727677699502,3.182,157.13,157.1,3.1823]
[1727677699698,1.2739,157.17,157.12,7.81]
[1727677699905,9.0839,157.17,157.12,7.81]
[1727677700405,9.0839,157.17,157.08,1.2888]
[1727677700406,7.81,157.14,157.08,1.2888]
[1727677700603,7.81,157.13,157.08,9.0988]
[1727677700799,7.81,157.13,157.08,1.2888]
[1727677700998,3.1822,157.12,157.08,10.9928]
[1727677701705,3.1822,157.12,157.07,0.12502]
[1727677701706,3.1825,157.11,157.07,11.11812]
[1727677702298,3.1825,157.11,157.07,3.30812]
[1727677702500,3.1825,157.11,157.07,11.11812]
[1727677702708,3.1825,157.11,157.07,3.30812]
[1727677702901,7.81,157.13,157.07,11.11812]
[1727677702902,3.1825,157.1,157.07,11.11812]
[1727677703304,7.81,157.13,157.07,11.11812]
[1727677703498,3.1823,157.11,157.07,11.11812]
[1727677705610,7.81,157.13,157.07,0.12502]
[1727677705814,7.81,157.13,157.07,7.93502]
[1727677707008,3.1824,157.11,157.07,11.11802]
[1727677707215,7.81,157.13,157.07,0.12502]
[1727677707404,3.1825,157.1,157.07,7.93502]
[1727677708213,3.1825,157.1,157.07,0.12502]
[1727677708411,7.81,157.12,157.07,0.12502]
[1727677708609,3.1827,157.09,157.07,0.12502]
[1727677713209,7.81,157.12,157.07,0.12502]
[1727677714324,7.81,157.12,157.07,7.93502]
[1727677715220,7.81,157.12,157.07,11.11812]
[1727677715917,3.1826,157.1,157.07,11.11812]
[1727677719020,3.1823,157.12,157.09,3.1827]
[1727677719219,7.81,157.13,157.08,7.81]
[1727677720223,3.1824,157.11,157.08,10.9928]
[1727677722224,3.1827,157.09,157.07,0.12502]
[1727677727222,3.1826,157.1,157.07,0.12502]
[1727677727432,3.56,157.16,157.08,3.1828]
[1727677727631,7.81,157.13,157.08,3.1828]
[1727677728326,7.81,157.12,157.08,3.1828]
[1727677728524,7.81,157.12,157.07,7.93502]
[1727677728725,7.81,157.12,157.07,11.11802]
[1727677729730,3.1825,157.1,157.07,11.11802]
[1727677730529,3.1825,157.1,157.07,3.30802]
[1727677738635,3.1825,157.1,157.07,0.12502]
[1727677740632,3.1825,157.1,157.07,3.30802]
[1727677741435,3.1824,157.11,157.08,7.81]
[1727677741638,7.81,157.15,157.09,10.9926]
[1727677741841,7.81,157.15,157.09,7.81]
[1727677743346,3.1821,157.12,157.09,10.9926]
[1727677743748,3.1824,157.11,157.08,10.9928]
[1727677743945,7.81,157.12,157.08,10.9928]
[1727677744844,3.1824,157.11,157.08,10.9928]
[1727677745245,7.81,157.12,157.07,3.30802]
[1727677745446,3.1825,157.1,157.07,3.30802]
[1727677746648,3.1826,157.1,157.07,0.12502]
[1727677748045,7.81,157.11,157.07,0.12502]
[1727677748746,7.81,157.12,157.08,7.81]
[1727677749151,3.1825,157.11,157.08,7.81]
[1727677749854,3.1825,157.1,157.08,7.81]
[1727677751750,7.81,157.12,157.08,10.9928]
[1727677751751,3.1822,157.12,157.08,10.9928]
[1727677752366,10.992,157.13,157.09,3.1826]
[1727677752545,7.81,157.13,157.09,3.1826]
[1727677753453,3.1822,157.12,157.09,3.1826]
[1727677755947,3.1822,157.12,157.09,10.9926]
[1727677756143,7.81,157.13,157.09,7.81]
[1727677756348,3.182,157.13,157.1,3.1824]
[1727677756550,7.81,157.15,157.09,7.81]
[1727677757145,3.1817,157.14,157.11,3.1822]
[1727677757851,7.93502,157.19,157.13,7.81]
[1727677758050,7.93502,157.19,157.14,7.81]
[1727677758862,0.12502,157.19,157.15,3.1814]
[1727677759061,0.12502,157.19,157.16,7.81]
[1727677759565,0.12502,157.19,157.16,10.9911]
[1727677761170,0.12502,157.19,157.1,1.2708]
[1727677761377,3.1811,157.17,157.13,10.9917]
[1727677762372,3.1811,157.17,157.13,3.1817]
[1727677764274,3.1811,157.17,157.12,7.81]
[1727677764479,10.9909,157.18,157.14,3.1816]
[1727677764674,0.12502,157.19,157.15,7.81]
[1727677764878,0.12502,157.19,157.16,7.81]
[1727677765678,0.12502,157.19,157.16,10.9911]
[1727677765980,0.12502,157.19,157.18,7.81]
[1727677766278,0.12502,157.19,157.1,1.2708]
[1727677766477,0.12502,157.19,157.16,3.1812]
[1727677766773,0.12502,157.19,157.15,7.81]
[1727677767884,0.12502,157.19,157.16,3.1812]
[1727677768175,0.12502,157.19,157.15,7.81]
[1727677768974,3.30572,157.19,157.15,10.9913]
[1727677769776,3.1809,157.18,157.14,3.1816]
[1727677769977,3.1809,157.18,157.14,10.9916]
[1727677770581,3.1809,157.18,157.15,3.1814]
[1727677770985,3.30572,157.19,157.15,3.1814]
[1727677771473,11.11572,157.19,157.15,3.1814]
[1727677776692,11.11572,157.19,157.1,1.2708]
[1727677776693,7.81,157.18,157.12,7.81]
[1727677776893,0.12502,157.19,157.13,3.1817]
[1727677776894,7.81,157.16,157.13,3.1817]
[1727677778490,10.9913,157.16,157.13,3.1817]
[1727677779791,7.81,157.16,157.13,3.1817]
[1727677782293,10.9913,157.16,157.13,3.1817]
[1727677784485,10.9913,157.16,157.12,3.182]
[1727677786988,3.1815,157.15,157.12,3.182]
[1727677787690,10.9915,157.15,157.12,3.182]
[1727677788092,3.1817,157.14,157.11,3.1822]
[1727677791495,3.1817,157.14,157.1,3.1823]
[1727677792490,3.1817,157.14,157.09,9.1732]
[1727677792697,3.1817,157.14,157.11,3.1823]
[1727677793102,3.1817,157.14,157.09,9.1732]
[1727677793303,3.1817,157.14,157.1,3.1823]
[1727677794005,3.1817,157.14,157.11,3.1823]
[1727677795501,3.1819,157.13,157.09,9.1732]
[1727677796302,3.1817,157.14,157.1,3.1825]
[1727677796501,1.356,157.18,157.1,7.81]
[1727677796702,7.81,157.16,157.1,7.81]
[1727677797109,3.1815,157.15,157.12,3.182]
[1727677797404,7.81,157.16,157.12,10.992]
[1727677797601,10.9913,157.16,157.12,10.992]
[1727677800210,7.81,157.16,157.12,7.81]
[1727677800411,0.12502,157.19,157.14,7.81]
[1727677801012,3.30582,157.19,157.14,7.81]
[1727677801512,3.1809,157.18,157.15,3.1814]
[1727677804018,7.81,157.18,157.14,7.81]
[1727677804211,3.1812,157.17,157.12,7.81]
[1727677804409,7.81,157.18,157.12,7.81]
[1727677804707,7.81,157.18,157.13,3.1818]
[1727677805110,7.81,157.17,157.11,3.1822]
[1727677805309,7.81,157.15,157.11,3.1822]
[1727677805708,7.81,157.15,157.1,9.1176]
[1727677806008,7.81,157.14,157.09,1.3632]
[1727677806803,3.182,157.13,157.09,4.5459]
[1727677807619,3.1822,157.12,157.08,4.4977]
[1727677808216,7.81,157.13,157.08,1.3149]
[1727677808418,10.9919,157.13,157.09,3.1827]
[1727677808623,7.81,157.13,157.07,7.93502]
[1727677809122,1.272,157.17,157.07,7.93502]
[1727677809309,7.81,157.13,157.07,7.93502]
[1727677810115,10.992,157.13,157.09,3.1827]
[1727677810527,1.272,157.17,157.1,7.81]
[1727677810724,3.1815,157.15,157.11,10.9922]
[1727677813428,7.81,157.15,157.11,3.1822]
[1727677813629,3.1819,157.13,157.08,7.81]
[1727677814327,3.1819,157.13,157.09,3.1825]
[1727677815034,10.9919,157.13,157.09,3.1825]
[1727677815738,7.81,157.13,157.09,3.1825]
[1727677815942,3.1821,157.12,157.09,3.1825]
[1727677818743,3.1824,157.11,157.07,11.11802]
[1727677818951,3.1824,157.11,157.07,7.93502]
[1727677819627,7.81,157.12,157.08,3.1829]
[1727677819628,10.9921,157.12,157.08,3.1829]
[1727677820438,3.1821,157.12,157.09,3.1826]
[1727677821940,3.1821,157.12,157.09,10.9926]
[1727677827249,3.1815,157.15,157.11,3.1822]
[1727677827449,7.81,157.16,157.11,10.9922]
[1727677827741,5.7087,157.18,157.14,3.1817]
[1727677827943,2.5277,157.18,157.14,3.1817]
[1727677828138,0.12502,157.19,157.16,7.81]
[1727677828439,0.12502,157.19,157.15,10.9914]
[1727677829133,3.1812,157.17,157.15,7.81]
[1727677829331,3.1812,157.17,157.13,12.355]
[1727677829545,3.1812,157.17,157.13,10.9918]
[1727677830849,3.1812,157.17,157.1,1.3003]
[1727677830850,3.1813,157.16,157.12,7.81]
[1727677831236,7.81,157.15,157.1,1.3003]
[1727677831444,3.1817,157.14,157.09,9.1618]
[1727677831645,7.81,157.13,157.09,1.3518]
[1727677832142,3.9568,157.18,157.09,1.3518]
[1727677832143,3.1817,157.14,157.09,9.1618]
[1727677832845,7.81,157.15,157.09,12.3444]
[1727677833046,10.9919,157.13,157.09,3.1826]
[1727677833343,7.81,157.13,157.07,3.30802]
[1727677833535,3.1821,157.12,157.07,7.93502]
[1727677834037,10.9919,157.13,157.08,3.1827]
[1727677834444,7.81,157.12,157.07,0.12502]
[1727677834745,7.81,157.12,157.07,7.93502]
[1727677835137,10.9921,157.12,157.07,11.11802]
[1727677839647,3.1829,157.08,157.07,0.12502]
[1727677840048,7.81,157.09,157.07,0.12502]
[1727677840550,7.81,157.1,157.07,0.12502]
[1727677841744,3.1828,157.09,157.07,0.12502]
[1727677843853,10.9929,157.08,157.07,0.12502]
[1727677844445,1.306,157.09,157.07,0.12502]
[1727677845648,4.4889,157.09,157.07,0.12502]
[1727677845855,1.306,157.09,157.07,0.12502]
[1727677846349,2.5739,157.12,157.07,3.30792]
[1727677846554,1.2756,157.12,157.07,7.93502]
[1727677847355,3.1824,157.11,157.08,3.1828]
[1727677847657,7.81,157.13,157.08,10.9928]
[1727677847852,3.1821,157.12,157.08,7.81]
[1727677848058,3.1821,157.12,157.09,3.1826]
[1727677848359,3.182,157.13,157.09,3.1826]
[1727677849355,3.1821,157.12,157.09,3.1826]
[1727677849563,7.81,157.16,157.1,7.81]
[1727677849755,3.1818,157.14,157.1,7.81]
[1727677850362,7.81,157.16,157.1,10.9923]
[1727677850658,7.81,157.15,157.1,10.9923]
[1727677851255,3.1819,157.13,157.1,10.9923]
[1727677851961,7.81,157.15,157.1,7.81]
[1727677852261,3.1819,157.13,157.1,10.9924]
[1727677853689,7.81,157.15,157.07,0.12502]
[1727677853860,3.1823,157.11,157.08,10.9927]
[1727677856166,3.1823,157.11,157.08,7.81]
[1727677863464,7.81,157.13,157.08,7.81]
[1727677863465,3.1827,157.1,157.08,7.81]
[1727677863660,7.81,157.12,157.07,0.12502]
[1727677863862,7.81,157.12,157.07,7.93502]
[1727677864058,7.81,157.12,157.07,11.11792]
[1727677864258,7.81,157.13,157.07,11.11792]
[1727677864859,3.1824,157.11,157.07,11.11792]
[1727677867268,3.1828,157.09,157.07,7.93502]
[1727677867473,7.81,157.12,157.07,0.12502]
[1727677868973,7.81,157.14,157.09,7.81]
[1727677869368,3.182,157.13,157.09,10.9926]
[1727677869769,9.1698,157.17,157.12,7.81]
[1727677869969,7.81,157.16,157.1,7.81]
[1727677870163,7.81,157.14,157.09,7.81]
[1727677870370,7.81,157.14,157.08,1.3451]
[1727677870671,7.81,157.14,157.09,7.81]
[1727677872267,7.81,157.14,157.09,10.9927]
[1727677872268,3.1822,157.12,157.09,10.9927]
[1727677872667,7.81,157.13,157.07,0.12502]
[1727677873272,3.1824,157.11,157.08,3.1828]
[1727677873978,3.1821,157.12,157.08,3.1828]
[1727677874678,3.1818,157.14,157.11,3.1823]
[1727677877167,3.1819,157.13,157.1,10.9924]
[1727677878177,3.1819,157.13,157.1,3.1824]
[1727677878578,3.1823,157.12,157.08,7.81]
[1727677879272,7.81,157.14,157.07,0.12502]
[1727677879583,7.81,157.14,157.08,7.81]
[1727677879787,7.81,157.11,157.07,0.12502]
[1727677880083,3.1828,157.09,157.07,0.12502]
[1727677881976,3.1829,157.08,157.07,0.12502]
[1727677882979,3.1828,157.09,157.07,0.12502]
[1727677884981,3.1822,157.12,157.07,0.12502]
[1727677885280,7.81,157.11,157.07,0.12502]
[1727677885681,10.9924,157.11,157.07,3.30812]
[1727677886381,3.1824,157.11,157.07,3.30812]
[1727677887291,3.1824,157.11,157.07,11.11812]
[1727677887495,3.1824,157.11,157.08,3.1829]
[1727677888286,7.81,157.13,157.07,0.12502]
[1727677888492,3.1827,157.1,157.07,0.12502]
[1727677890586,3.1827,157.1,157.07,3.30812]
[1727677890792,7.81,157.12,157.07,0.12502]
[1727677890982,3.1826,157.1,157.07,0.12502]
[1727677894993,7.81,157.12,157.07,3.30812]
[1727677895194,3.1823,157.11,157.07,3.30812]
[1727677895392,7.81,157.12,157.07,3.30812]
[1727677896299,3.1826,157.1,157.07,0.12502]
[1727677899600,7.81,157.11,157.07,0.12502]
[1727677900401,3.1825,157.1,157.07,0.12502]
[1727677900602,7.81,157.11,157.07,0.12502]
[1727677901913,3.1822,157.12,157.07,0.12502]
[1727677902102,7.81,157.1,157.07,0.12502]
[1727677903197,3.1828,157.09,157.07,0.12502]
[1727677903408,7.81,157.1,157.07,0.12502]
[1727677903590,7.81,157.09,157.07,0.12502]
[1727677903899,3.1829,157.08,157.07,0.12502]
[1727677919505,7.81,157.09,157.03,0.12518]
[1727677919713,10.9937,157.04,157.03,0.12518]
[1727677920510,3.1841,157.02,157.01,0.12502]
[1727677920711,10.9941,157.02,157.01,0.12502]
[1727677923812,3.1841,157.02,157.01,0.12502]
[1727677924009,7.81,157.02,157.01,0.12502]
[1727677924215,2.3609,157.07,157.02,3.1841]
[1727677924406,7.81,157.04,157.01,0.12502]
[1727677924712,7.81,157.02,157.01,0.12502]
[1727677925606,3.6412,157.07,157.01,0.12502]
[1727677925808,7.81,157.02,157.01,0.12502]
[1727677926916,7.81,157.03,157.01,0.12502]
[1727677927720,7.81,157.03,157.01,3.30932]
[1727677928226,3.1835,157.06,157.02,3.184]
[1727677928520,7.81,157.04,157.02,3.184]
[1727677930826,7.81,157.04,157.01,0.12502]
[1727677931025,2.3609,157.07,157.01,0.12502]
[1727677931333,7.81,157.06,157.01,0.12502]
[1727677931628,10.9933,157.06,157.02,3.184]
[1727677931926,7.81,157.04,157.02,3.184]
[1727677933627,7.81,157.04,157.01,0.12502]
[1727677933825,7.81,157.03,157.01,3.30922]
[1727677935026,1.0,157.07,157.02,3.1841]
[1727677935328,1.3626,157.11,157.04,7.81]
[1727677935527,7.81,157.09,157.04,7.81]
[1727677935729,3.1826,157.1,157.06,3.1831]
[1727677935926,78.34483802,157.15,157.07,7.81]
[1727677936228,7.81,157.12,157.07,7.81]
[1727677936632,7.81,157.12,157.08,3.1828]
[1727677936824,7.81,157.11,157.08,3.1828]
[1727677937123,7.81,157.11,157.05,7.81]
[1727677937830,7.81,157.09,157.04,7.81]
[1727677938232,7.81,157.09,157.05,3.1834]
[1727677938433,7.81,157.09,157.04,7.81]
[1727677938930,7.81,157.09,157.06,3.1832]
[1727677940070,10.9923,157.11,157.06,3.1832]
[1727677940326,7.81,157.1,157.05,3.1835]
[1727677940721,3.1827,157.09,157.05,3.1835]
[1727677941030,7.81,157.08,157.03,3.1838]
[1727677941425,7.81,157.08,157.02,1.24]
[1727677941631,7.81,157.08,157.03,3.1838]
[1727677942028,1.48872,157.13,157.01,0.12502]
[1727677942029,7.81,157.05,157.01,0.12502]
[1727677942332,7.81,157.05,157.01,3.30922]
[1727677942524,10.9937,157.04,157.01,0.12502]
[1727677943119,7.81,157.05,157.01,0.12502]
[1727677943634,7.81,157.05,157.02,3.184]
[1727677944519,10.9934,157.06,157.02,3.184]
[1727677944724,1.3209,157.11,157.01,7.93502]
[1727677944725,10.993,157.08,157.04,3.1836]
[1727677945030,1.3209,157.11,157.03,7.81]
[1727677945237,10.993,157.08,157.04,3.1837]
[1727677947536,3.1833,157.06,157.03,3.1838]
[1727677948239,7.81,157.05,157.01,0.12502]
[1727677948437,10.9935,157.05,157.01,3.30922]
[1727677950535,7.81,157.05,157.01,3.30922]
[1727677951840,10.9936,157.05,157.01,3.30922]
[1727677952644,10.9936,157.05,157.01,0.12502]
[1727677952843,10.9936,157.05,157.02,3.1841]
[1727677953536,10.9936,157.05,157.01,3.30922]
[1727677953733,10.9936,157.05,157.01,0.12502]